bitfinex/quotes_SOLUSD_20250821
["timestamp","ask_amount","ask_price","bid_price","bid_amount"]
[1755788312560,0.06,185.44,185.4,0.68]
[1755788312849,0.06,185.44,185.42,0.68]
[1755788313147,0.06,185.44,185.43,7.1843909]
[1755788313822,0.06,185.44,185.41,7.1843909]
[1755788314952,0.06,185.44,185.42,7.1843909]
[1755788316233,0.06,185.44,185.41,0.68]
[1755788316545,0.06,185.44,185.41,7.1843909]
[1755788316850,0.06,185.44,185.4,7.1843909]
[1755788317051,7.1843909,185.43,185.37,0.68]
[1755788317234,7.1843909,185.43,185.38,7.1843909]
[1755788317427,0.06,185.44,185.37,0.68]
[1755788317648,7.1843909,185.43,185.38,7.1843909]
[1755788317856,7.1843909,185.43,185.38,7.8643909]
[1755788318167,7.2443909,185.44,185.39,7.8643909]
[1755788318328,13.59559401,185.43,185.39,7.8643909]
[1755788318665,7.2443909,185.44,185.42,7.1843909]
[1755788318666,26.06,185.44,185.42,7.1843909]
[1755788319027,0.06,185.44,185.43,7.8643909]
[1755788320148,0.06,185.44,185.43,7.1843909]
[1755788320351,0.06,185.44,185.41,0.68]
[1755788320650,0.06,185.44,185.4,7.1843909]
[1755788321049,7.2443909,185.44,185.39,7.1843909]
[1755788321352,20.77998491,185.43,185.38,0.68]
[1755788321530,20.77998491,185.43,185.38,7.8643909]
[1755788321729,7.1843909,185.42,185.37,50.2243909]
[1755788321942,13.59559401,185.41,185.37,50.2243909]
[1755788322261,7.1843909,185.4,185.37,43.04]
[1755788322442,7.1843909,185.39,185.37,122.84]
[1755788322640,7.1843909,185.39,185.37,43.04]
[1755788322830,7.1843909,185.39,185.35,0.03]
[1755788322831,7.1843909,185.38,185.35,0.03]
[1755788323249,13.59559401,185.38,185.35,0.71]
[1755788323451,13.59559401,185.38,185.35,0.03]
[1755788323653,7.1843909,185.38,185.35,0.03]
[1755788324232,7.1843909,185.37,185.35,0.03]
[1755788325955,13.59559401,185.36,185.35,0.03]
[1755788326163,20.77998491,185.36,185.35,0.03]
[1755788326455,46.77998491,185.36,185.35,0.03]
[1755788327359,26.0,185.41,185.35,0.03]
[1755788327529,29.59119972,185.4,185.35,7.9343909]
[1755788327733,26.0,185.39,185.36,0.72]
[1755788327962,26.0,185.39,185.36,7.9043909]
[1755788328139,26.0,185.39,185.37,0.72]
[1755788328740,20.77998491,185.42,185.37,7.1843909]
[1755788328948,3.59478451,185.41,185.38,0.72]
[1755788329564,3.59478451,185.41,185.35,0.03]
[1755788329766,3.59478451,185.41,185.38,0.72]
[1755788330065,10.77917541,185.41,185.36,7.1843909]
[1755788330229,7.1843909,185.39,185.35,0.03]
[1755788330435,7.1843909,185.38,185.35,0.03]
[1755788330741,10.77917541,185.39,185.35,0.75]
[1755788331446,3.59478451,185.39,185.36,0.72]
[1755788331660,7.1843909,185.4,185.35,7.2143909]
[1755788331970,3.59901031,185.4,185.37,0.72]
[1755788333059,13.65559401,185.44,185.39,7.1843909]
[1755788333272,3.60103357,185.43,185.42,7.1843909]
[1755788333563,0.06,185.44,185.43,0.72]
[1755788333769,0.06,185.44,185.38,43.04]
[1755788333956,7.1843909,185.42,185.37,50.9443909]
[1755788334154,7.1843909,185.42,185.38,0.72]
[1755788334750,7.1843909,185.41,185.36,7.9043909]
[1755788334951,7.1843909,185.41,185.37,0.72]
[1755788335578,7.1843909,185.39,185.35,0.03]
[1755788335944,7.1843909,185.39,185.35,0.75]
[1755788336385,7.1843909,185.37,185.35,0.03]
[1755788337045,3.60103357,185.39,185.35,0.03]
[1755788337046,7.1843909,185.36,185.35,0.03]
[1755788338159,13.59559401,185.38,185.35,0.03]
[1755788338360,7.1843909,185.37,185.35,0.03]
[1755788338556,26.0,185.41,185.36,0.72]
[1755788338745,7.1843909,185.39,185.37,0.72]
[1755788338936,10.78315947,185.39,185.37,0.72]
[1755788339567,3.59876857,185.39,185.37,0.72]
[1755788339969,10.78315947,185.39,185.35,0.75]
[1755788340164,7.1843909,185.36,185.35,0.03]
[1755788340738,3.59876857,185.39,185.35,0.03]
[1755788340943,7.1843909,185.37,185.35,0.03]
[1755788341473,7.1843909,185.37,185.35,0.75]
[1755788341655,7.2443909,185.37,185.35,0.75]
[1755788342469,7.1843909,185.36,185.35,0.03]
[1755788342852,0.06,185.37,185.35,0.03]
[1755788343364,7.2443909,185.37,185.35,0.03]
[1755788344357,0.06,185.37,185.35,0.03]
[1755788344546,7.2443909,185.37,185.35,0.03]
[1755788344954,7.1843909,185.36,185.35,0.03]
[1755788347560,0.06,185.37,185.35,0.03]
[1755788347757,7.1843909,185.36,185.35,0.03]
[1755788348352,0.06,185.37,185.35,0.75]
[1755788348551,0.06,185.37,185.36,0.72]
[1755788349177,0.06,185.37,185.35,0.03]
[1755788349365,0.06,185.37,185.35,0.75]
[1755788350766,0.06,185.37,185.35,0.03]
[1755788351187,0.06,185.37,185.35,0.75]
[1755788352017,0.06,185.37,185.36,5.13196008]
[1755788352892,0.06,185.37,185.36,0.72]
[1755788353179,0.06,185.37,185.35,0.03]
[1755788353382,4.41196008,185.36,185.35,0.03]
[1755788353582,4.47196008,185.37,185.35,0.03]
[1755788354091,0.06,185.37,185.35,0.03]
[1755788354271,4.47196008,185.37,185.35,0.03]
[1755788355157,4.41196008,185.36,185.35,0.03]
[1755788356993,18.00755409,185.36,185.35,0.03]
[1755788357973,21.61936082,185.36,185.35,0.03]
[1755788362469,53.04881145,185.36,185.35,0.03]
[1755788362671,57.06597606,185.36,185.35,0.03]
[1755788362882,43.20740074,185.36,185.35,0.03]
[1755788363088,47.61936082,185.36,185.35,0.03]
[1755788363498,51.63715337,185.36,185.35,0.03]
[1755788365387,56.14738272,185.36,185.35,0.03]
[1755788366500,30.15171551,185.36,185.35,0.03]
[1755788367284,25.64148616,185.36,185.35,0.69]
[1755788367487,68.64148616,185.36,185.35,0.03]
[1755788368303,26.0,185.34,185.33,0.2]
[1755788368484,51.64148616,185.34,185.33,0.2]
[1755788369508,51.63380538,185.34,185.33,0.2]
[1755788369815,56.1531999,185.34,185.33,0.2]
[1755788370113,30.15296336,185.34,185.33,0.2]
[1755788370315,25.63356884,185.34,185.33,0.2]
[1755788370775,25.6328167,185.34,185.33,0.2]
[1755788371880,17.20740074,185.34,185.33,0.86]
[1755788373511,43.20740074,185.34,185.33,0.86]
[1755788376603,47.61936082,185.34,185.33,0.86]
[1755788377213,43.20740074,185.34,185.33,0.86]
[1755788377397,47.61936082,185.34,185.33,0.86]
[1755788378128,47.61936082,185.34,185.33,0.2]
[1755788378832,25.63295829,185.34,185.33,0.2]
[1755788379002,30.15235281,185.34,185.33,0.2]
[1755788379499,25.63295829,185.34,185.33,0.2]
[1755788380121,39.59559401,185.32,185.31,0.03]
[1755788380290,108.84150489,185.32,185.31,0.03]
[1755788381302,104.42954481,185.32,185.31,0.03]
[1755788381491,43.20740074,185.32,185.31,0.69]
[1755788381697,47.61936082,185.32,185.31,0.69]
[1755788382199,3.61180673,185.32,185.31,0.69]
[1755788382401,8.02376681,185.34,185.31,0.69]
[1755788382600,8.02376681,185.34,185.29,4.44196008]
[1755788382601,22.41951417,185.32,185.29,0.03]
[1755788382800,48.52101117,185.3,185.27,0.03]
[1755788383000,48.52101117,185.3,185.24,0.2]
[1755788383001,39.59559401,185.25,185.24,0.2]
[1755788383309,52.0313209,185.25,185.24,0.2]
[1755788383511,13.59559401,185.24,185.23,0.2]
[1755788383692,26.0313209,185.24,185.23,0.2]
[1755788383899,39.59559401,185.21,185.18,0.86]
[1755788384207,47.61936082,185.21,185.18,0.86]
[1755788385523,47.61936082,185.21,185.18,0.2]
[1755788386315,50.41343153,185.21,185.18,0.2]
[1755788386721,39.59559401,185.17,185.16,0.2]
[1755788386901,50.41343153,185.17,185.16,0.2]
[1755788388324,52.45403263,185.17,185.16,0.2]
[1755788388526,56.04236347,185.17,185.16,0.2]
[1755788388704,50.38995564,185.17,185.16,0.2]
[1755788389209,50.38995564,185.17,185.14,0.2]
[1755788389210,13.59559401,185.16,185.14,0.2]
[1755788389428,7.20603079,185.15,185.14,0.2]
[1755788389625,10.79002862,185.15,185.14,0.2]
[1755788390310,26.0,185.17,185.14,0.9]
[1755788390647,7.20603079,185.16,185.14,0.9]
[1755788390940,26.0,185.17,185.15,0.7]
[1755788391131,7.20603079,185.16,185.14,0.2]
[1755788391306,7.20603079,185.15,185.14,0.2]
[1755788392124,7.20603079,185.15,185.14,0.9]
[1755788393541,7.20603079,185.15,185.14,67.50687103]
[1755788396041,26.0,185.17,185.14,67.50687103]
[1755788396247,7.20603079,185.15,185.14,66.80687103]
[1755788396819,7.20603079,185.16,185.14,67.50687103]
[1755788397155,7.20603079,185.16,185.15,0.7]
[1755788397355,2.8181036,185.21,185.15,7.90603079]
[1755788397651,7.26603079,185.23,185.16,0.7]
[1755788397947,7.26603079,185.23,185.18,7.20603079]
[1755788398138,7.26603079,185.23,185.19,0.7]
[1755788398449,0.06,185.23,185.19,7.90603079]
[1755788398747,0.06,185.23,185.2,0.7]
[1755788398951,7.26603079,185.23,185.2,0.7]
[1755788399530,7.20603079,185.22,185.15,26.0]
[1755788399731,7.20603079,185.18,185.16,43.94]
[1755788400046,7.20603079,185.18,185.17,0.7]
[1755788400253,26.06,185.23,185.17,0.7]
[1755788400455,0.06,185.23,185.2,7.20603079]
[1755788400750,7.26603079,185.23,185.21,0.7]
[1755788400949,7.26603079,185.23,185.18,7.20603079]
[1755788401145,7.26603079,185.23,185.22,0.7]
[1755788401727,7.26603079,185.23,185.2,0.7]
[1755788401919,7.20603079,185.21,185.14,66.80687103]
[1755788402125,7.20603079,185.17,185.15,0.7]
[1755788402733,7.20603079,185.16,185.14,110.00687103]
[1755788402934,7.20603079,185.15,185.14,110.00687103]
[1755788403239,7.20603079,185.15,185.14,110.70687103]
[1755788403639,26.0,185.21,185.14,110.70687103]
[1755788403951,26.0,185.2,185.17,7.20603079]
[1755788404134,7.20603079,185.22,185.17,7.20603079]
[1755788404337,7.20603079,185.21,185.18,0.7]
[1755788404856,0.06,185.23,185.18,7.90603079]
[1755788405042,0.06,185.23,185.19,51.06603079]
[1755788405230,0.06,185.23,185.19,51.04603079]
[1755788405435,7.20603079,185.2,185.15,7.20603079]
[1755788405625,7.20603079,185.2,185.19,0.7]
[1755788405830,7.20603079,185.21,185.19,0.7]
[1755788406030,7.20603079,185.22,185.2,0.7]
[1755788406252,7.20603079,185.22,185.18,43.14]
[1755788406253,0.06,185.23,185.19,7.20603079]
[1755788406451,0.06,185.23,185.21,0.7]
[1755788406636,7.26603079,185.23,185.21,0.7]
[1755788406842,7.26603079,185.23,185.22,0.7]
[1755788407162,0.06,185.23,185.18,43.14]
[1755788407342,0.06,185.23,185.19,0.7]
[1755788407533,7.20603079,185.2,185.19,0.7]
[1755788408049,7.20603079,185.2,185.17,0.7]
[1755788408367,7.20603079,185.18,185.17,0.7]
[1755788410163,3.58139846,185.2,185.17,0.7]
[1755788410361,7.20603079,185.2,185.18,0.7]
[1755788410527,10.78742925,185.21,185.19,0.7]
[1755788410728,7.20603079,185.21,185.2,0.7]
[1755788410948,3.58139846,185.21,185.2,0.7]
[1755788411149,7.20603079,185.21,185.2,0.7]
[1755788411343,3.58139846,185.21,185.18,0.7]
[1755788411561,10.78742925,185.21,185.2,0.7]
[1755788412642,10.78742925,185.21,185.19,0.7]
[1755788412961,10.78742925,185.21,185.2,0.7]
[1755788413157,10.78742925,185.21,185.16,0.03]
[1755788413335,7.20603079,185.19,185.17,0.7]
[1755788413536,7.20603079,185.19,185.18,0.7]
[1755788414130,7.20603079,185.19,185.16,79.83]
[1755788414368,7.20603079,185.17,185.16,80.53]
[1755788414536,7.20603079,185.17,185.16,0.03]
[1755788414732,7.20603079,185.17,185.16,0.73]
[1755788415365,7.20603079,185.17,185.16,0.03]
[1755788415536,28.37008468,185.17,185.16,0.03]
[1755788416634,28.37008468,185.17,185.16,0.69]
[1755788416635,10.78742925,185.17,185.16,0.69]
[1755788417040,10.78742925,185.18,185.16,0.69]
[1755788417270,10.78742925,185.19,185.16,0.69]
[1755788417562,7.20603079,185.19,185.16,0.69]
[1755788417868,26.0,185.2,185.16,0.69]
[1755788417869,7.20603079,185.17,185.16,0.03]
[1755788418055,24.38302326,185.17,185.16,0.03]
[1755788418250,10.78742925,185.17,185.16,0.03]
[1755788418641,3.58139846,185.17,185.16,0.03]
[1755788418841,10.78742925,185.17,185.16,0.03]
[1755788419865,28.37658491,185.17,185.16,0.03]
[1755788420067,54.37658491,185.17,185.16,0.03]
[1755788420240,58.89004199,185.17,185.16,0.03]
[1755788420434,26.0,185.15,185.14,66.80687103]
[1755788420642,66.0760685,185.15,185.14,66.80687103]
[1755788420938,61.58283285,185.15,185.14,66.80687103]
[1755788421236,13.59559401,185.14,185.12,0.03]
[1755788421439,61.58283285,185.13,185.12,0.03]
[1755788421647,39.59559401,185.12,185.11,0.03]
[1755788421837,54.37817155,185.12,185.11,0.03]
[1755788422968,28.37817155,185.12,185.11,0.03]
[1755788424061,28.37817155,185.12,185.11,0.69]
[1755788424673,28.37817155,185.12,185.11,0.03]
[1755788424868,28.37817155,185.12,185.11,0.69]
[1755788425073,7.57654675,185.12,185.11,0.69]
[1755788425278,14.78257754,185.12,185.11,0.69]
[1755788425460,11.20117908,185.12,185.11,0.69]
[1755788425986,7.20603079,185.12,185.11,0.69]
[1755788426175,10.80758654,185.12,185.11,0.69]
[1755788426775,14.81024276,185.12,185.11,0.03]
[1755788428056,28.40583677,185.12,185.11,0.03]
[1755788428981,39.59559401,185.08,185.07,0.03]
[1755788429166,54.40583677,185.08,185.07,0.03]
[1755788429987,50.40318055,185.08,185.07,0.03]
[1755788430197,54.40608539,185.08,185.07,0.03]
[1755788430701,54.40290903,185.08,185.07,0.03]
[1755788431059,54.40256991,185.08,185.07,0.03]
[1755788431258,59.7849754,185.08,185.07,0.03]
[1755788431490,64.27819895,185.08,185.07,0.03]
[1755788431697,59.7849754,185.08,185.07,0.03]
[1755788432260,59.7849754,185.08,185.05,0.03]
[1755788432261,65.76936122,185.08,185.05,0.03]
[1755788432570,13.59559401,185.02,185.0,0.03]
[1755788432778,54.40256991,185.01,185.0,0.03]
[1755788433157,47.19653912,185.01,185.0,0.69]
[1755788433359,50.40318055,185.01,185.0,0.69]
[1755788434290,50.40318055,185.01,185.0,0.03]
[1755788434495,54.39586573,185.01,185.0,0.03]
[1755788434864,40.80027172,185.01,185.0,0.69]
[1755788435084,7.20603079,185.03,185.0,0.69]
[1755788435272,10.79905926,185.03,185.01,0.66]
[1755788435484,10.79905926,185.03,185.02,0.66]
[1755788435701,7.20603079,185.04,185.02,0.66]
[1755788435996,3.59302847,185.05,185.02,0.66]
[1755788436196,10.79905926,185.04,185.0,0.03]
[1755788436363,3.59302847,185.05,185.02,0.66]
[1755788437569,7.20603079,185.13,185.02,0.66]
[1755788437570,24.38915545,185.1,185.04,7.20603079]
[1755788437760,10.79356144,185.09,185.05,7.86603079]
[1755788438091,10.79356144,185.09,185.06,0.66]
[1755788438269,7.20603079,185.08,185.06,0.66]
[1755788438597,3.58753065,185.1,185.06,0.66]
[1755788438774,7.20603079,185.08,185.07,0.66]
[1755788438961,7.20603079,185.09,185.07,0.66]
[1755788439588,3.58753065,185.1,185.08,0.66]
[1755788439885,13.59559401,185.11,185.09,0.66]
[1755788440091,3.58753065,185.1,185.08,7.20603079]
[1755788440277,50.26603079,185.13,185.08,7.20603079]
[1755788440464,3.58525947,185.12,185.08,7.20603079]
[1755788440663,3.58525947,185.12,185.09,0.66]
[1755788440974,7.20603079,185.12,185.1,0.66]
[1755788441172,10.79129026,185.12,185.11,0.66]
[1755788441376,20.8016248,185.13,185.11,0.66]
[1755788442121,7.20603079,185.12,185.11,0.66]
[1755788442796,46.8016248,185.13,185.11,0.66]
[1755788442973,7.20603079,185.12,185.07,0.66]
[1755788443174,7.20603079,185.08,185.04,0.66]
[1755788443363,33.20603079,185.13,185.04,0.66]
[1755788443364,7.20603079,185.05,185.04,0.66]
[1755788443820,7.20603079,185.05,185.02,0.66]
[1755788443965,7.20603079,185.03,185.02,0.66]
[1755788445062,7.20603079,185.03,185.01,0.03]
[1755788445262,7.20603079,185.02,185.01,0.03]
[1755788445878,7.20603079,185.02,185.01,0.69]
[1755788446179,13.59559401,185.06,185.01,0.69]
[1755788446378,7.20603079,185.05,185.01,0.03]
[1755788446588,13.59559401,185.06,185.03,0.03]
[1755788446795,7.20603079,185.05,185.04,0.69]
[1755788447196,7.20603079,185.06,185.04,0.69]
[1755788447394,20.8016248,185.06,185.05,0.69]
[1755788447773,7.20603079,185.06,185.05,0.69]
[1755788447972,7.20603079,185.07,185.05,0.69]
[1755788448167,33.20603079,185.07,185.05,0.69]
[1755788448367,33.20603079,185.07,185.06,0.69]
[1755788448579,26.0,185.07,185.06,0.69]
[1755788448782,33.20603079,185.07,185.06,0.69]
[1755788449095,16.41396705,185.1,185.06,0.69]
[1755788449297,7.20603079,185.11,185.06,7.89603079]
[1755788449476,3.58112841,185.11,185.07,7.89603079]
[1755788449680,0.06,185.14,185.1,7.20603079]
[1755788449880,7.20603079,185.13,185.08,7.89603079]
[1755788450077,7.20603079,185.13,185.09,0.69]
[1755788450575,7.20603079,185.1,185.06,0.69]
[1755788450775,7.20603079,185.1,185.07,0.69]
[1755788450988,10.78754887,185.11,185.08,0.69]
[1755788451510,3.58151808,185.11,185.09,0.69]
[1755788451691,3.64151808,185.14,185.09,7.89603079]
[1755788451876,3.64151808,185.14,185.04,26.0]
[1755788451877,3.64151808,185.14,185.1,7.89603079]
[1755788452271,3.64151808,185.14,185.11,0.69]
[1755788452596,0.06,185.14,185.12,0.69]
[1755788453101,0.06,185.16,185.13,7.20603079]
[1755788453273,0.06,185.16,185.15,7.20603079]
[1755788453609,0.06,185.16,185.14,0.69]
[1755788454194,0.06,185.16,185.15,0.69]
[1755788455172,10.84754887,185.16,185.13,0.69]
[1755788455368,7.20603079,185.14,185.11,0.69]
[1755788455578,7.20603079,185.12,185.09,0.69]
[1755788455803,3.58151808,185.15,185.1,0.69]
[1755788456098,39.71559401,185.16,185.1,0.69]
[1755788456099,7.20603079,185.11,185.1,0.69]
[1755788456606,7.20603079,185.11,185.08,0.69]
[1755788456774,7.20603079,185.11,185.03,26.03]
[1755788456775,7.20603079,185.09,185.04,7.20603079]
[1755788456975,44.13297656,185.16,185.07,7.20603079]
[1755788456976,7.20603079,185.12,185.07,7.20603079]
[1755788457280,10.78754887,185.13,185.08,7.89603079]
[1755788457477,10.78754887,185.12,185.09,0.69]
[1755788457671,10.78754887,185.11,185.09,0.69]
[1755788457871,3.58151808,185.14,185.1,0.69]
[1755788458091,7.20603079,185.12,185.11,0.69]
[1755788458299,10.78754887,185.12,185.11,0.69]
[1755788458604,10.78754887,185.15,185.11,0.69]
[1755788458767,7.57379541,185.14,185.11,0.69]
[1755788458972,3.58151808,185.13,185.12,0.69]
[1755788459198,3.58151808,185.13,185.1,7.20603079]
[1755788459386,3.58151808,185.12,185.1,7.20603079]
[1755788459575,3.58151808,185.14,185.1,7.20603079]
[1755788459780,3.58151808,185.13,185.11,0.69]
[1755788459991,3.58151808,185.12,185.11,7.20603079]
[1755788460299,3.58151808,185.15,185.11,7.20603079]
[1755788460503,2.86151808,185.15,185.14,7.20603079]
[1755788460800,0.06,185.16,185.14,7.89603079]
[1755788461020,0.06,185.16,185.15,7.20603079]
[1755788461194,0.06,185.16,185.15,7.89603079]
[1755788461586,0.06,185.16,185.12,0.69]
[1755788461912,0.06,185.16,185.13,7.89603079]
[1755788462609,7.20603079,185.14,185.1,0.69]
[1755788462774,7.20603079,185.12,185.05,43.06]
[1755788462979,7.20603079,185.11,185.07,0.69]
[1755788463179,7.20603079,185.1,185.07,0.69]
[1755788463576,7.20603079,185.11,185.08,0.69]
[1755788463890,7.20603079,185.11,185.07,7.20603079]
[1755788464090,7.20603079,185.11,185.09,0.69]
[1755788464400,7.20603079,185.15,185.1,7.20603079]
[1755788464710,0.06,185.16,185.13,7.20603079]
[1755788465014,0.06,185.16,185.13,0.69]
[1755788465488,0.06,185.16,185.14,7.89603079]
[1755788465685,0.06,185.16,185.15,7.20603079]
[1755788465890,0.06,185.16,185.15,7.89603079]
[1755788470688,0.06,185.16,185.15,26.89265099]
[1755788471008,0.06,185.21,185.19,26.0]
[1755788471190,0.06,185.21,185.2,50.24603079]
[1755788471397,0.06,185.23,185.2,56.33535193]
[1755788471623,0.06,185.27,185.22,40.41206158]
[1755788471783,0.06,185.27,185.24,14.41206158]
[1755788471988,0.06,185.27,185.26,7.20603079]
[1755788472186,0.06,185.27,185.24,50.24603079]
[1755788472386,0.06,185.27,185.24,54.03749621]
[1755788473395,0.74,185.27,185.23,10.99749621]
[1755788473723,0.06,185.27,185.22,43.04]
[1755788474017,0.06,185.27,185.23,10.99749621]
[1755788474818,0.06,185.27,185.24,10.99749621]
[1755788475023,0.06,185.27,185.25,10.99749621]
[1755788475215,0.06,185.27,185.25,11.68749621]
[1755788475720,0.06,185.27,185.21,26.0]
[1755788475721,0.06,185.27,185.24,10.99749621]
[1755788477300,10.99749621,185.26,185.2,0.67]
[1755788477500,10.99749621,185.25,185.2,54.68749621]
[1755788478014,11.70749621,185.26,185.21,10.99749621]
[1755788478229,10.99749621,185.25,185.21,10.99749621]
[1755788478523,10.99749621,185.26,185.22,10.99749621]
[1755788478695,0.06,185.27,185.23,11.66749621]
[1755788480425,0.71,185.26,185.23,10.99749621]
[1755788480609,10.99749621,185.25,185.2,54.01749621]
[1755788481020,11.70749621,185.26,185.21,11.66749621]
[1755788481319,0.06,185.27,185.24,10.99749621]
[1755788481723,0.06,185.27,185.25,0.67]
[1755788482093,0.06,185.27,185.26,11.66749621]
[1755788482299,0.06,185.27,185.26,91.46749621]
[1755788485419,0.06,185.27,185.26,134.46749621]
[1755788485722,0.06,185.27,185.26,122.8]
[1755788487900,0.06,185.27,185.26,134.46749621]
[1755788488095,0.06,185.27,185.26,133.79749621]
[1755788488296,0.06,185.27,185.26,122.8]
[1755788489629,0.06,185.27,185.26,134.46749621]
[1755788489824,0.06,185.27,185.26,160.46749621]
[1755788489998,0.06,185.29,185.28,26.0]
[1755788490200,0.06,185.29,185.28,36.99749621]
[1755788490523,0.06,185.29,185.28,160.46749621]
[1755788490823,0.06,185.29,185.28,174.06309022]
[1755788492115,0.06,185.29,185.28,179.46032683]
[1755788492318,0.06,185.31,185.29,13.59559401]
[1755788492528,0.06,185.31,185.3,89.78159175]
[1755788492713,0.06,185.31,185.3,90.45159175]
[1755788492905,0.06,185.31,185.3,92.61498175]
[1755788493136,0.06,185.31,185.3,66.61498175]
[1755788493320,0.06,185.31,185.3,146.41498175]
[1755788493913,0.06,185.31,185.3,172.41498175]
[1755788494107,0.06,185.31,185.3,156.63599774]
[1755788494432,0.06,185.31,185.3,158.79962174]
[1755788495438,0.06,185.31,185.3,172.39521575]
[1755788496213,0.06,185.31,185.3,310.09186982]
[1755788496531,0.06,185.31,185.3,304.69521575]
[1755788498010,0.06,185.35,185.34,39.59559401]
[1755788498209,0.06,185.35,185.34,97.48713842]
[1755788498446,0.06,185.35,185.34,98.15713842]
[1755788498752,0.06,185.35,185.34,100.32006042]
[1755788498963,0.06,185.35,185.34,93.13406268]
[1755788499855,0.06,185.37,185.34,121.93554979]
[1755788500038,0.06,185.37,185.36,20.78159175]
[1755788500234,0.06,185.37,185.36,64.30108247]
[1755788500442,0.06,185.37,185.36,64.97108247]
[1755788501147,0.06,185.37,185.36,72.52867767]
[1755788501459,0.06,185.37,185.36,67.13377047]
[1755788502549,0.06,185.37,185.36,52.32868574]
[1755788502768,0.77,185.37,185.36,2.162688]
[1755788503054,0.77,185.37,185.36,42.96]
[1755788503256,0.06,185.37,185.36,50.14599774]
[1755788504449,0.06,185.37,185.36,42.96]
[1755788504675,0.77,185.37,185.34,7.18599774]
[1755788504862,0.06,185.37,185.35,42.96]
[1755788505148,0.71,185.36,185.35,42.96]
[1755788505453,0.06,185.37,185.35,50.14599774]
[1755788506162,7.89599774,185.36,185.32,7.185998]
[1755788506360,26.06,185.37,185.29,79.8]
[1755788506361,7.18599774,185.33,185.29,79.8]
[1755788506655,0.71,185.32,185.3,42.96]
[1755788506958,0.72,185.31,185.3,42.96]
[1755788507452,7.90599774,185.31,185.3,42.96]
[1755788507660,0.72,185.31,185.3,42.96]
[1755788507827,7.90599774,185.31,185.3,42.96]
[1755788508653,7.90599774,185.31,185.28,0.03]
[1755788508855,29.56509053,185.32,185.29,42.96]
[1755788509055,7.90599774,185.3,185.28,0.03]
[1755788509259,7.18599774,185.29,185.28,0.03]
[1755788509630,7.90599774,185.29,185.28,0.03]
[1755788510033,15.43595022,185.29,185.28,0.03]
[1755788510256,11.87085969,185.29,185.28,0.03]
[1755788510439,29.03154423,185.29,185.28,0.03]
[1755788510632,39.59559401,185.27,185.26,0.03]
[1755788510839,58.77244297,185.27,185.26,0.03]
[1755788511051,59.49244297,185.27,185.26,0.03]
[1755788511365,59.49181625,185.27,185.26,0.03]
[1755788512456,59.492517,185.27,185.26,0.03]
[1755788512833,59.4918976,185.27,185.26,0.03]
[1755788514171,47.84562784,185.27,185.26,0.03]
[1755788514355,55.03162558,185.27,185.26,0.03]
[1755788516477,33.53003383,185.27,185.26,0.03]
[1755788516773,7.18599774,185.28,185.26,0.03]
[1755788517200,10.75645427,185.29,185.26,0.03]
[1755788517560,7.18599774,185.29,185.26,0.03]
[1755788518350,33.18599774,185.3,185.27,0.72]
[1755788519478,14.31559401,185.33,185.26,0.03]
[1755788519479,7.90599774,185.33,185.28,7.90599774]
[1755788519647,7.18599774,185.32,185.28,7.90599774]
[1755788520685,7.18599774,185.34,185.29,7.90599774]
[1755788520863,3.57202696,185.35,185.31,7.18599774]
[1755788521067,7.18599774,185.36,185.31,7.90599774]
[1755788521370,33.18599774,185.35,185.31,87.70599774]
[1755788521775,7.18599774,185.35,185.31,80.52]